bitfinex-derivatives/quotes_BTCF0:USTF0_20241003
["timestamp","ask_amount","ask_price","bid_price","bid_amount"]
[1727954681997,0.19,60788.0,60787.0,0.1264102]
[1727954682191,0.19,60788.0,60783.0,0.082271]
[1727954682394,0.19,60788.0,60779.0,0.0038]
[1727954682395,0.5508,60784.0,60779.0,0.0038]
[1727954682602,0.3608,60784.0,60773.0,0.0038]
[1727954682790,0.19,60774.0,60773.0,0.01905605]
[1727954682991,0.19,60774.0,60772.0,0.082286]
[1727954683203,0.19,60774.0,60768.0,0.04934203]
[1727954683402,0.19,60774.0,60769.0,0.0304]
[1727954683699,0.19,60774.0,60772.0,0.082286]
[1727954683902,0.19,60774.0,60769.0,0.0304]
[1727954684202,0.19,60770.0,60768.0,0.0307]
[1727954684503,0.19,60770.0,60763.0,0.082299]
[1727954684710,0.19,60766.0,60763.0,0.082299]
[1727954685205,0.19,60766.0,60756.0,0.0038]
[1727954685407,0.19,60757.0,60752.0,0.0038]
[1727954685592,0.19,60756.0,60755.0,0.01867052]
[1727954685911,0.19,60756.0,60754.0,0.082311]
[1727954686095,0.19,60756.0,60749.0,0.04954341]
[1727954686495,0.19,60756.0,60753.0,0.082312]
[1727954687007,0.3608,60755.0,60749.0,0.01914341]
[1727954687193,0.19,60752.0,60744.0,0.086124]
[1727954687394,0.19,60752.0,60739.0,0.03516967]
[1727954687395,0.5508,60745.0,60741.0,0.0038]
[1727954687702,0.5508,60745.0,60739.0,0.00246967]
[1727954687703,0.19,60742.0,60739.0,0.00246967]
[1727954687903,0.0038,60749.0,60747.0,0.082319]
[1727954688095,0.19,60750.0,60741.0,0.0038]
[1727954688295,0.19,60742.0,60739.0,0.00246967]
[1727954689002,0.191,60745.0,60741.0,0.082329]
[1727954689209,0.3608,60746.0,60739.0,0.19246967]
[1727954689397,0.0038,60748.0,60744.0,0.082323]
[1727954689598,0.001,60742.0,60739.0,0.55326967]
[1727954689799,0.002,60742.0,60739.0,0.36326967]
[1727954690204,0.19,60742.0,60739.0,0.36326967]
[1727954691106,0.19,60742.0,60733.0,0.91989151]
[1727954691107,0.49392,60741.0,60733.0,0.00084]
[1727954691310,0.082342,60732.0,60726.0,0.00084]
[1727954691496,0.19,60727.0,60726.0,0.00084]
[1727954691699,0.19,60730.0,60724.0,0.08235]
[1727954691898,0.082337,60735.0,60722.0,0.982354]
[1727954692104,0.19,60736.0,60722.0,0.9]
[1727954692405,0.191,60732.0,60722.0,0.9]
[1727954692606,0.19,60736.0,60724.0,0.19]
[1727954692807,0.19,60736.0,60726.0,0.082348]
[1727954693110,0.001,60735.0,60726.0,0.082348]
[1727954693407,0.001,60735.0,60723.0,0.082352]
[1727954693408,0.19,60732.0,60723.0,0.082352]
[1727954693915,0.001,60735.0,60725.0,0.082349]
[1727954694101,0.001,60735.0,60728.0,0.19]
[1727954694411,0.001,60735.0,60729.0,0.082344]
[1727954694412,0.002,60735.0,60729.0,0.082344]
[1727954694602,0.002,60735.0,60728.0,0.19]
[1727954694603,0.001,60732.0,60728.0,0.19]
[1727954694998,0.001,60735.0,60731.0,0.3608]
[1727954695197,0.001,60735.0,60734.0,0.19]
[1727954695406,0.002,60735.0,60734.0,0.19]
[1727954695601,0.002,60735.0,60728.0,0.001]
[1727954695999,0.19,60732.0,60722.0,0.982354]
[1727954696301,0.272341,60732.0,60731.0,0.001]
[1727954697612,0.082347,60728.0,60722.0,0.9]
[1727954697916,0.271347,60728.0,60721.0,0.3918]
[1727954698208,0.082352,60724.0,60721.0,0.3608]
[1727954698409,0.082357,60720.0,60719.0,0.90092]
[1727954698601,0.082357,60720.0,60718.0,0.0648]
[1727954698804,0.55220001,60722.0,60718.0,0.0648]
[1727954699011,0.5508,60722.0,60718.0,0.0648]
[1727954699316,0.3608,60722.0,60718.0,0.9648]
[1727954699704,0.001,60720.0,60718.0,0.9648]
[1727954700403,0.3618,60722.0,60718.0,0.9648]
[1727954700799,0.083355,60722.0,60718.0,0.9648]
[1727954701003,0.001,60720.0,60718.0,0.9648]
[1727954701603,0.084355,60722.0,60718.0,0.9648]
[1727954701807,0.002,60722.0,60718.0,0.9648]
[1727954702012,0.083357,60720.0,60718.0,0.9648]
[1727954702204,0.002,60720.0,60718.0,0.9648]
[1727954702715,0.002,60720.0,60718.0,1.047159]
[1727954702899,0.001,60720.0,60719.0,0.082358]
[1727954703304,0.001,60720.0,60718.0,0.96564]
[1727954703510,0.001,60720.0,60719.0,0.082358]
[1727954703719,0.3608,60736.0,60719.0,0.85488]
[1727954704016,0.0038,60734.0,60728.0,0.28]
[1727954704213,0.082338,60735.0,60723.0,0.28]
[1727954704426,0.3608,60736.0,60719.0,0.3608]
[1727954704427,0.28,60733.0,60719.0,0.3608]
[1727954704621,0.001,60720.0,60719.0,0.443158]
[1727954704918,0.28,60733.0,60719.0,2.35488]
[1727954704919,0.0038,60731.0,60719.0,2.35488]
[1727954705118,0.082347,60728.0,60719.0,1.2608]
[1727954705619,0.001,60734.0,60719.0,1.5408]
[1727954705809,0.001,60734.0,60733.0,0.082339]
[1727954706111,0.001,60734.0,60719.0,1.623158]
[1727954706112,0.001,60734.0,60727.0,0.3608]
[1727954706320,0.082344,60730.0,60727.0,0.443147]
[1727954706502,0.08234,60733.0,60728.0,0.082346]
[1727954706710,0.082341,60732.0,60728.0,0.082346]
[1727954706913,0.082343,60731.0,60729.0,0.0313]
[1727954707212,0.086128,60742.0,60729.0,0.0313]
[1727954707409,0.086128,60742.0,60736.0,0.082335]
[1727954707410,0.08233,60740.0,60736.0,0.082335]
[1727954707603,0.08233,60740.0,60737.0,0.0331]
[1727954707809,0.08233,60740.0,60737.0,0.115433]
[1727954708006,0.08233,60740.0,60738.0,0.0312]
[1727954708207,0.28,60748.0,60738.0,0.0312]
[1727954708208,0.28,60748.0,60738.0,0.113533]
[1727954708413,0.08233,60740.0,60738.0,0.113533]
[1727954708715,0.08233,60740.0,60739.0,0.082331]
[1727954708716,0.001,60740.0,60739.0,0.082331]
[1727954709217,0.082323,60746.0,60741.0,0.082328]
[1727954709419,0.08232,60747.0,60741.0,0.082328]
[1727954709605,0.001,60740.0,60738.0,0.0322]
[1727954709803,0.083331,60740.0,60738.0,0.0322]
[1727954710105,0.03390693,60740.0,60738.0,0.05115348]
[1727954710309,0.03390693,60740.0,60738.0,0.13248548]
[1727954710506,0.082326,60744.0,60741.0,0.001]
[1727954710709,0.082327,60742.0,60741.0,0.001]
[1727954711814,0.082327,60742.0,60741.0,0.002]
[1727954712315,0.083327,60742.0,60741.0,0.002]
[1727954712505,0.083327,60742.0,60741.0,0.001]
[1727954712707,1.538007,60742.0,60741.0,0.001]
[1727954712912,0.082331,60739.0,60738.0,0.002]
[1727954713215,0.08235,60725.0,60724.0,0.09635937]
[1727954713606,0.6408,60725.0,60723.0,0.06545937]
[1727954713809,0.082353,60723.0,60717.0,0.00247056]
[1727954714003,0.08236,60718.0,60717.0,0.00247056]
[1727954714203,0.3608,60725.0,60717.0,0.00247056]
[1727954714417,0.08236,60718.0,60717.0,0.00247056]
[1727954714816,0.082356,60721.0,60717.0,0.06792993]
[1727954715015,0.3618,60725.0,60717.0,0.15028993]
[1727954715318,0.3618,60725.0,60719.0,0.06545937]
[1727954715511,0.001,60723.0,60720.0,0.09695937]
[1727954715814,0.082356,60721.0,60720.0,0.06545937]
[1727954716017,0.28,60721.0,60719.0,0.06545937]
[1727954716423,0.28,60721.0,60718.0,0.06545937]
[1727954716424,0.082358,60719.0,60718.0,0.06545937]
[1727954716722,0.28,60721.0,60717.0,0.00347056]
[1727954717025,0.28,60721.0,60719.0,0.06557117]
[1727954717208,0.08236,60718.0,60717.0,0.00347056]
[1727954717408,0.08236,60718.0,60717.0,0.00247056]
[1727954718621,0.08336,60718.0,60717.0,0.00247056]
[1727954719121,0.08336,60718.0,60717.0,0.08399973]
[1727954719318,0.08436,60718.0,60717.0,0.08399973]
[1727954719816,0.08436,60718.0,60717.0,0.19221179]
[1727954720209,0.002,60718.0,60717.0,0.32086725]
[1727954720919,0.002,60718.0,60717.0,0.32076469]
[1727954721720,0.3608,60725.0,60717.0,0.50150021]
[1727954721920,0.0038,60728.0,60721.0,0.11482404]
[1727954722125,0.3608,60730.0,60722.0,0.29913313]
[1727954722422,0.443143,60730.0,60729.0,0.18082581]
[1727954722624,0.443143,60730.0,60729.0,0.10763561]
[1727954723120,0.3608,60730.0,60729.0,0.22158061]
[1727954723611,0.3608,60730.0,60729.0,0.34900544]
[1727954723813,0.3618,60730.0,60729.0,0.34900544]
[1727954724218,0.444143,60730.0,60729.0,0.34900544]
[1727954724420,0.444143,60730.0,60729.0,0.23771828]
[1727954724818,0.445143,60730.0,60729.0,0.13923561]
[1727954725529,0.444143,60730.0,60729.0,0.13923561]
[1727954725728,0.445143,60730.0,60729.0,0.14023561]
[1727954727223,0.445143,60730.0,60729.0,0.0326]
[1727954727224,0.444143,60730.0,60729.0,0.0326]
[1727954727427,0.445143,60730.0,60729.0,0.0326]
[1727954731226,0.445143,60730.0,60729.0,0.001]
[1727954732836,0.635143,60730.0,60729.0,0.001]
[1727954733033,0.082358,60719.0,60718.0,0.0038]
[1727954733227,0.082358,60719.0,60717.0,0.00247056]
[1727954733228,0.08236,60718.0,60717.0,0.00247056]
[1727954734328,0.08236,60718.0,60717.0,0.10962393]
[1727954734631,0.08336,60718.0,60717.0,0.10962393]
[1727954735131,0.08336,60718.0,60717.0,0.20813982]
[1727954735536,0.08336,60718.0,60717.0,0.10962393]
[1727954735731,0.08436,60718.0,60717.0,0.10962393]
[1727954735935,0.08336,60718.0,60717.0,0.10962393]
[1727954736135,0.08436,60718.0,60717.0,0.10962393]
[1727954736635,0.002,60718.0,60717.0,0.10962393]
[1727954736829,0.002,60718.0,60717.0,0.20814014]
[1727954737138,0.08436,60718.0,60717.0,0.10962393]
[1727954741135,0.08436,60718.0,60717.0,0.20814014]
[1727954742042,0.082356,60721.0,60717.0,0.10962393]
[1727954742335,0.082357,60721.0,60720.0,0.082355]
[1727954742730,0.082352,60724.0,60723.0,0.082351]
[1727954743132,0.082354,60722.0,60721.0,0.0326]
[1727954743332,0.082354,60722.0,60721.0,0.114956]
[1727954744139,0.3646,60730.0,60721.0,0.9326]
[1727954744333,0.082347,60728.0,60726.0,0.082349]
[1727954744537,0.082347,60728.0,60727.0,0.031]
[1727954744743,0.082347,60728.0,60727.0,0.113348]
[1727954744942,0.082345,60729.0,60727.0,0.113348]
[1727954745137,0.082345,60729.0,60728.0,0.0333]
[1727954746242,0.001,60729.0,60728.0,0.115646]
[1727954746439,0.002,60729.0,60728.0,0.117646]
[1727954747536,0.001,60729.0,60728.0,1.30416882]
[1727954747734,0.0038,60737.0,60736.0,0.082335]
[1727954747933,0.272324,60745.0,60741.0,0.082328]
[1727954747934,0.082328,60742.0,60741.0,0.082328]
[1727954748542,0.082321,60747.0,60738.0,0.3608]
[1727954748741,0.082324,60745.0,60742.0,0.082327]
[1727954748943,0.082325,60744.0,60743.0,0.114525]
[1727954749352,0.082325,60744.0,60743.0,0.22119065]
[1727954749640,0.08232,60748.0,60745.0,0.082323]
[1727954749843,0.082321,60747.0,60745.0,0.27112084]
[1727954750139,0.00247089,60749.0,60745.0,0.08213219]
[1727954750343,0.00247089,60749.0,60748.0,0.082319]
[1727954751438,0.00347089,60749.0,60748.0,0.082319]
[1727954751945,0.00647089,60749.0,60748.0,0.082319]
[1727954752143,0.0038,60757.0,60748.0,1.64464]
[1727954752337,0.082305,60759.0,60756.0,0.25560907]
[1727954752540,0.082305,60759.0,60758.0,0.06560907]
[1727954753242,0.082305,60759.0,60757.0,0.112906]
[1727954753442,0.19,60764.0,60759.0,0.082303]
[1727954753650,0.082306,60758.0,60757.0,0.0306]
[1727954754051,0.082306,60758.0,60757.0,0.09620907]
[1727954754352,0.082306,60758.0,60748.0,0.67213605]
[1727954754353,0.08231,60755.0,60754.0,0.06560907]
[1727954754539,0.08231,60755.0,60752.0,0.06560907]
[1727954754540,0.082311,60754.0,60752.0,0.06560907]
[1727954755041,0.19,60755.0,60752.0,0.06560907]
[1727954755042,0.082312,60753.0,60752.0,0.06560907]
[1727954755246,0.082312,60753.0,60751.0,0.06560907]
[1727954755443,0.082312,60753.0,60751.0,0.14792407]
[1727954755649,0.002,60758.0,60753.0,0.082312]
[1727954755850,0.082309,60756.0,60754.0,0.082311]
[1727954756143,0.192,60758.0,60751.0,0.06560907]
[1727954756144,0.002,60758.0,60752.0,0.006]
[1727954756339,0.002,60758.0,60757.0,0.082307]
[1727954756955,0.082302,60761.0,60760.0,0.082303]
[1727954757340,0.082302,60761.0,60757.0,0.082306]
[1727954757541,0.002,60758.0,60756.0,0.082308]
[1727954757740,0.04190646,60757.0,60756.0,0.082308]
[1727954759347,0.04190646,60757.0,60756.0,0.084308]
[1727954759947,0.04190646,60757.0,60751.0,0.082314]
[1727954760145,0.04190646,60756.0,60755.0,0.27231]
[1727954760845,0.04038895,60756.0,60755.0,0.27231]
[1727954761354,0.04038895,60756.0,60755.0,0.27331]
[1727954762050,0.3608,60765.0,60755.0,1.36711]
[1727954762051,0.001,60757.0,60755.0,1.36711]
[1727954762248,0.001,60757.0,60756.0,0.272308]
[1727954762449,0.3608,60765.0,60764.0,0.272297]
[1727954762644,0.04054326,60765.0,60764.0,0.272297]
[1727954763649,0.00246912,60766.0,60765.0,0.082296]
[1727954764251,0.3608,60771.0,60764.0,0.191]
[1727954764456,0.3608,60771.0,60770.0,0.082289]
[1727954765652,0.3608,60771.0,60770.0,0.115389]
[1727954766156,0.3668,60771.0,60770.0,0.116389]
[1727954766651,0.3668,60771.0,60770.0,1.016389]
[1727954766956,0.3608,60771.0,60770.0,1.017389]
[1727954767142,0.001,60771.0,60770.0,1.017389]
[1727954767551,0.001,60771.0,60770.0,2.111069]
[1727954767942,0.3608,60778.0,60777.0,0.08228]
[1727954768147,0.3608,60778.0,60777.0,0.27228]
[1727954768959,0.3668,60778.0,60777.0,0.27328]
[1727954769648,0.3748,60778.0,60777.0,0.27428]
[1727954769848,0.0139,60778.0,60777.0,0.63508]
[1727954770346,0.0139,60778.0,60777.0,1.53508]
[1727954770959,0.0038,60785.0,60777.0,1.4528]
[1727954771159,0.3608,60788.0,60787.0,0.082266]
[1727954771160,0.36588,60788.0,60787.0,0.082266]
[1727954771356,0.0038,60792.0,60784.0,0.19]
[1727954771357,0.3608,60793.0,60789.0,0.082264]
[1727954771546,0.3608,60793.0,60784.0,0.19]
[1727954771547,0.3608,60793.0,60786.0,0.19]
[1727954771748,0.082262,60790.0,60787.0,0.082266]
[1727954771952,0.082262,60790.0,60786.0,0.19]
[1727954772162,0.082262,60790.0,60788.0,0.082265]
[1727954772550,0.14464358,60789.0,60779.0,0.3646]
[1727954772751,0.12981335,60784.0,60783.0,0.082272]
[1727954773050,0.21955465,60784.0,60779.0,0.3796861]
[1727954773349,0.0398413,60783.0,60782.0,0.082273]
[1727954773547,0.03888528,60783.0,60782.0,0.082273]
[1727954773759,0.12981335,60788.0,60787.0,0.082266]
[1727954773960,0.004,60790.0,60789.0,0.082264]
[1727954774547,0.004,60790.0,60789.0,0.982264]
[1727954774755,0.12981335,60791.0,60789.0,0.9]
[1727954774960,0.12981335,60791.0,60790.0,0.272262]
[1727954775261,0.12991777,60793.0,60792.0,0.08226]
[1727954775459,0.12991777,60795.0,60792.0,0.19]
[1727954775848,0.12991777,60798.0,60794.0,0.082257]
[1727954776153,0.12991777,60798.0,60791.0,0.4215]
[1727954776154,0.1299071,60800.0,60798.0,0.19]
[1727954776352,0.1299071,60800.0,60799.0,0.27225]
[1727954776550,0.1299071,60801.0,60800.0,0.082249]
[1727954776754,0.1299071,60802.0,60800.0,0.082249]
[1727954777153,0.1299071,60801.0,60800.0,0.082249]
[1727954777561,0.1299071,60802.0,60800.0,0.082249]
[1727954777860,0.1299071,60802.0,60800.0,0.004]
[1727954778163,0.08471042,60804.0,60801.0,0.082247]
[1727954778361,0.08471042,60804.0,60803.0,0.19]
[1727954778557,0.23075044,60804.0,60803.0,0.19]
[1727954778858,0.28275503,60804.0,60803.0,0.19]
[1727954779063,0.082247,60801.0,60800.0,0.009]
[1727954779258,0.082257,60794.0,60793.0,0.0038]
[1727954779468,0.082257,60794.0,60788.0,0.0188254]
[1727954779469,0.082264,60789.0,60788.0,0.0188254]
[1727954779766,0.082258,60793.0,60783.0,0.114571]
[1727954779953,0.082267,60787.0,60783.0,0.0323]
[1727954780153,0.082265,60788.0,60786.0,0.082267]
[1727954780348,0.082265,60788.0,60783.0,0.0323]
[1727954780349,0.086054,60796.0,60787.0,0.082266]
[1727954780558,0.276053,60797.0,60783.0,0.05119189]
[1727954780761,0.08227,60784.0,60783.0,0.05119189]
[1727954781366,0.001,60789.0,60783.0,0.05119189]
[1727954781667,0.082268,60786.0,60783.0,0.05119189]
[1727954781870,0.082268,60786.0,60783.0,0.05319189]
[1727954782261,0.082269,60785.0,60783.0,0.05319189]
[1727954782465,0.082269,60785.0,60783.0,0.05619189]
[1727954782661,0.082269,60785.0,60783.0,0.13846289]
[1727954783167,0.082269,60785.0,60784.0,0.19]
[1727954784063,0.0302,60790.0,60784.0,0.19]
[1727954784365,0.0302,60790.0,60788.0,0.19]
[1727954784366,0.082264,60789.0,60788.0,0.19]
[1727954785567,0.084264,60789.0,60788.0,0.19]
[1727954785867,0.084264,60789.0,60785.0,0.082269]
[1727954786063,0.084264,60789.0,60784.0,0.191]
[1727954786260,0.084264,60789.0,60786.0,0.082267]
[1727954786466,0.087264,60789.0,60786.0,0.082267]
[1727954786659,0.087264,60789.0,60788.0,0.082265]
[1727954786857,0.002,60789.0,60788.0,0.272265]
[1727954787563,0.003,60789.0,60788.0,0.272265]
[1727954787866,0.001,60789.0,60788.0,0.272265]
[1727954788469,0.003,60789.0,60788.0,0.272265]
[1727954788965,0.002,60789.0,60788.0,0.272265]
[1727954789268,0.005,60789.0,60788.0,0.272265]
[1727954790869,0.005,60789.0,60788.0,0.765785]
[1727954791362,0.0038,60796.0,60788.0,1.28352]
[1727954791564,0.082249,60800.0,60795.0,0.19]
[1727954791764,0.082249,60800.0,60789.0,0.112664]
[1727954791765,0.08471142,60804.0,60799.0,0.19]
[1727954791967,0.08471142,60804.0,60802.0,0.082246]
[1727954792158,0.06371142,60804.0,60803.0,0.19]
[1727954793674,0.06371142,60804.0,60803.0,0.192]
[1727954793860,0.06371142,60804.0,60803.0,0.002]
[1727954794179,0.082243,60804.0,60803.0,0.003]
[1727954794485,0.16025741,60804.0,60800.0,0.00295707]
[1727954794660,0.032,60806.0,60801.0,0.082247]
[1727954794661,0.17964421,60802.0,60801.0,0.082247]
[1727954794854,0.31757998,60802.0,60799.0,0.19]
[1727954795067,0.13793577,60801.0,60800.0,0.082249]
[1727954795665,0.12892591,60801.0,60800.0,0.852249]
[1727954796167,0.12992591,60801.0,60800.0,0.858249]
[1727954796370,0.12992591,60801.0,60800.0,0.862249]
[1727954796567,0.12992591,60801.0,60800.0,0.01]
[1727954796768,0.40217291,60801.0,60789.0,0.0038]
[1727954796958,0.082255,60796.0,60788.0,0.0038]
[1727954797267,0.082265,60788.0,60786.0,0.0189999]
[1727954797472,0.21119191,60787.0,60786.0,0.0189999]
[1727954798070,0.21119191,60787.0,60784.0,0.08227]
[1727954798365,0.12892591,60786.0,60784.0,0.08227]
[1727954798569,0.12892591,60785.0,60784.0,0.08227]
[1727954798760,0.11492591,60785.0,60784.0,0.08227]
[1727954798961,0.11492591,60785.0,60784.0,0.10080079]
[1727954799363,0.11492591,60785.0,60784.0,0.29080079]
[1727954799563,0.11492591,60785.0,60784.0,0.29880079]
[1727954800162,0.16839082,60785.0,60784.0,0.003]
[1727954800373,0.22737588,60785.0,60784.0,0.003]
[1727954800575,0.082272,60783.0,60782.0,0.01885936]
[1727954800779,0.082276,60780.0,60776.0,0.08228]
[1727954800971,0.16839882,60779.0,60776.0,0.08228]
[1727954801582,0.08612182,60779.0,60778.0,0.65234746]
[1727954802369,0.16839882,60779.0,60778.0,0.57006946]
[1727954802574,0.083277,60779.0,60778.0,0.57006946]
[1727954802966,0.001,60779.0,60778.0,0.65234746]
[1727954803388,0.001,60779.0,60778.0,0.65534746]
[1727954804181,0.0038,60789.0,60778.0,0.57306946]
[1727954804380,0.082264,60789.0,60785.0,0.082268]
[1727954804573,0.082265,60788.0,60783.0,0.19]
[1727954804773,0.0306,60793.0,60783.0,0.19]
[1727954804978,0.08227,60785.0,60784.0,0.77]
[1727954805575,0.08227,60785.0,60783.0,0.19]
[1727954805970,0.009,60789.0,60783.0,1.042271]
[1727954806174,0.082265,60788.0,60783.0,1.042271]
[1727954806576,0.082265,60788.0,60783.0,0.96]
[1727954806783,0.082265,60788.0,60785.0,0.082268]
[1727954807170,0.0344,60793.0,60783.0,0.96088]
[1727954807384,0.08472418,60795.0,60793.0,0.082257]
[1727954807774,0.00246818,60795.0,60794.0,0.082257]
[1727954807978,0.13042607,60800.0,60794.0,0.082257]
[1727954808283,0.13042607,60800.0,60799.0,0.08225]
[1727954809279,0.13142607,60800.0,60799.0,0.08225]
[1727954809674,0.13142607,60800.0,60799.0,0.10092767]
[1727954809977,0.13042607,60800.0,60799.0,0.10592767]
[1727954810381,0.3608,60802.0,60801.0,0.082247]
[1727954811981,0.3608,60802.0,60801.0,0.085247]
[1727954812977,0.082243,60805.0,60801.0,0.003]
[1727954813183,0.082243,60805.0,60802.0,0.19]
[1727954813788,0.082243,60805.0,60803.0,0.082244]
[1727954814184,0.3608,60808.0,60804.0,0.082243]
[1727954814391,0.08224,60807.0,60806.0,0.19]
[1727954815089,0.3608,60808.0,60802.0,0.002]
[1727954815490,0.082243,60805.0,60800.0,0.082248]
[1727954815881,0.082245,60803.0,60800.0,0.082248]
[1727954816187,0.082245,60803.0,60802.0,0.002]
[1727954816584,0.082245,60803.0,60801.0,0.082246]
[1727954817096,0.082243,60804.0,60801.0,0.082247]
[1727954817490,0.002,60807.0,60796.0,0.3436133]
[1727954817491,0.12868177,60803.0,60796.0,0.3436133]
[1727954817796,0.12868177,60802.0,60800.0,0.082248]
[1727954818094,0.12868177,60801.0,60800.0,0.082248]
[1727954818789,0.12868177,60801.0,60800.0,0.085248]
[1727954819791,0.05898375,60807.0,60806.0,0.082241]
[1727954819989,0.082231,60813.0,60806.0,0.082241]
[1727954819990,0.05898375,60809.0,60808.0,0.082238]
[1727954820189,0.082231,60813.0,60811.0,0.082234]
[1727954820389,0.27354598,60815.0,60812.0,0.272231]
[1727954820692,0.06145082,60815.0,60812.0,0.272231]
[1727954820887,0.06145082,60815.0,60812.0,0.19]
[1727954821289,0.082231,60813.0,60812.0,0.19]
[1727954821689,0.14367982,60815.0,60812.0,0.272232]
[1727954822085,0.15367982,60815.0,60813.0,0.08223]
[1727954822286,0.07145082,60815.0,60812.0,0.191]
[1727954822494,0.01246707,60815.0,60814.0,0.08223]
[1727954822689,0.00246707,60815.0,60814.0,0.08223]
[1727954822890,0.06945082,60815.0,60814.0,0.08223]
[1727954823597,0.05898375,60815.0,60814.0,0.08223]
[1727954823792,0.01,60815.0,60814.0,0.08223]
[1727954824499,0.019,60815.0,60814.0,0.08223]
[1727954825003,0.07146736,60815.0,60814.0,0.08323]
[1727954825500,0.07146736,60815.0,60814.0,0.19]
[1727954825798,0.07146736,60815.0,60814.0,0.272229]
[1727954825799,0.20005843,60815.0,60814.0,0.272229]
[1727954826000,0.021,60815.0,60814.0,0.272229]
[1727954826197,0.07146736,60815.0,60814.0,0.272229]
[1727954826387,0.20005672,60815.0,60814.0,0.272229]
[1727954826700,0.07146736,60815.0,60814.0,0.272229]
[1727954827503,0.07146736,60815.0,60814.0,0.14060517]
[1727954827801,0.18364847,60815.0,60814.0,0.14060517]
[1727954828099,0.23411583,60815.0,60814.0,0.14060517]
[1727954828396,0.1117272,60815.0,60814.0,0.14060517]
[1727954828599,0.08584676,60815.0,60814.0,0.14060517]
[1727954828804,0.24309523,60815.0,60814.0,0.50140517]
[1727954829101,0.24309268,60815.0,60814.0,0.50140517]
[1727954829299,0.08044676,60815.0,60814.0,0.50140517]
[1727954829691,0.19438609,60815.0,60814.0,1.59472517]
[1727954829893,0.24685345,60815.0,60814.0,1.59472517]
[1727954830307,0.24685345,60815.0,60814.0,2.36472517]
[1727954830606,0.08422323,60815.0,60814.0,2.36472517]
[1727954831206,0.06612417,60815.0,60814.0,2.36472517]
[1727954831597,0.06412417,60815.0,60814.0,2.36472517]
[1727954831792,0.06412417,60815.0,60814.0,2.36872517]
[1727954831793,0.06612417,60815.0,60814.0,2.36872517]
[1727954832297,0.21258932,60815.0,60814.0,2.36872517]
[1727954832497,0.002,60815.0,60814.0,2.36872517]
[1727954832705,0.002,60815.0,60814.0,1.68649617]
[1727954832894,0.082228,60815.0,60814.0,0.004]
[1727954833094,0.082228,60815.0,60814.0,0.008]
[1727954833297,1.240148,60815.0,60814.0,0.008]
[1727954833709,0.640148,60815.0,60814.0,0.008]
[1727954834705,0.641148,60815.0,60814.0,0.004]
[1727954835098,0.082235,60810.0,60809.0,0.01944376]
[1727954835302,0.082238,60808.0,60805.0,0.082241]
[1727954835513,0.082238,60808.0,60806.0,0.08224]
[1727954835905,0.082239,60808.0,60804.0,1.213962]
[1727954836106,0.082239,60808.0,60804.0,1.213042]
[1727954836417,0.082239,60808.0,60805.0,0.082242]
[1727954836708,0.082239,60807.0,60806.0,0.003]
[1727954838006,0.082239,60807.0,60806.0,0.005]
[1727954838407,0.082239,60807.0,60806.0,0.002]
[1727954838608,0.083239,60807.0,60805.0,0.085242]
[1727954839019,0.083239,60807.0,60806.0,0.082241]
[1727954839322,0.082239,60807.0,60806.0,0.084241]
[1727954839531,0.082239,60807.0,60806.0,0.087241]
[1727954840218,0.082239,60807.0,60806.0,0.005]
[1727954840904,0.082239,60807.0,60806.0,0.003]
[1727954841312,0.0332,60814.0,60806.0,0.002]
[1727954841511,0.082239,60807.0,60806.0,0.002]
[1727954842012,0.001,60807.0,60804.0,1.15061839]
[1727954842221,0.001,60807.0,60804.0,1.14965839]
[1727954842415,0.082242,60805.0,60804.0,1.14965839]
[1727954843121,0.082242,60805.0,60804.0,1.15165839]
[1727954843622,0.082242,60805.0,60804.0,1.23390139]
[1727954843815,0.082242,60805.0,60804.0,1.23490139]
[1727954844015,0.082242,60805.0,60804.0,1.15265839]
[1727954844418,0.082242,60805.0,60804.0,1.15165839]
[1727954844621,0.082242,60805.0,60804.0,1.15265839]
[1727954844920,0.082242,60805.0,60804.0,1.15165839]
[1727954845221,0.083242,60805.0,60804.0,1.15165839]
[1727954845410,0.083242,60805.0,60804.0,0.02185839]
[1727954846317,0.083242,60805.0,60804.0,0.02085839]
[1727954847716,0.20476193,60805.0,60804.0,0.001]
[1727954847911,0.20776193,60805.0,60804.0,0.001]
[1727954848518,0.20776193,60805.0,60798.0,0.75]
[1727954848519,0.20576193,60805.0,60798.0,0.75]
[1727954848711,0.08225,60800.0,60799.0,0.08225]
[1727954848909,0.20476993,60800.0,60799.0,0.08225]
[1727954850224,0.08225,60799.0,60798.0,0.75084]
[1727954850418,0.20476993,60799.0,60798.0,0.75]
[1727954850715,0.20476993,60799.0,60798.0,0.836251]
[1727954851118,0.20476993,60799.0,60798.0,0.832251]
[1727954851317,0.20476993,60799.0,60798.0,0.836251]
[1727954851819,0.12251993,60799.0,60798.0,0.838251]
[1727954853314,0.07204052,60799.0,60798.0,0.838251]
[1727954854518,0.07204052,60799.0,60798.0,0.837251]
[1727954854719,0.07204052,60799.0,60798.0,0.835251]
[1727954855032,0.07204052,60799.0,60798.0,0.838251]
[1727954855326,0.07204052,60799.0,60798.0,0.837251]
[1727954855522,0.082247,60802.0,60799.0,0.08225]
[1727954856827,0.082247,60802.0,60798.0,0.006]
[1727954857013,0.08225,60799.0,60798.0,0.003]
[1727954858116,0.08225,60799.0,60795.0,0.3608]
[1727954858327,0.082254,60796.0,60795.0,0.3608]
[1727954859130,0.082258,60793.0,60792.0,0.0235243]
[1727954859323,0.082254,60796.0,60787.0,0.3608]